Cogmind - Beta 12 @@@ ROGUE MODE // 2023.11.30 @ 15:09:50 Player: zapruda Result: Destroyed by S-10 Pest with Light Assault Rifle Performance ------------- Evolutions (1) 500 Regions Visited (3) 600 Robots Destroyed (9) 45 Value Destroyed (171) 171 Prototype IDs (0) 0 Alien Tech Used (0) 0 Bonus (0) 0 TOTAL SCORE: 1316 Bonus ------- None Cogmind --------- Core Integrity 0/400 Matter 266/300 Energy 15/100 System Corruption 0% Temperature Cool (6) Movement Core (150) Ox2 Location -9/Materials Parts ------- > --- POWER (1) -------- (None) > --- PROPULSION (2) --- Aluminum Leg > --- UTILITY (4) ------ Small Storage Unit ECM Suite > --- WEAPON (2) ------- (None) > --- INVENTORY (8) ---- Hacking Suite Peak State ------------ > --- POWER ------------ Light Ion Engine > --- PROPULSION ------- Wheel Wheel > --- UTILITY ---------- Small Storage Unit ECM Suite > --- WEAPON ----------- Small Laser Light Assault Rifle > --- INVENTORY -------- Light Ion Engine Light Treads Light Treads Aluminum Leg Compact Wheel Hacking Suite Light Assault Rifle Mining Laser [Rating: 8] Favorites ----------- Power Light Ion Engine Engine Light Ion Engine Propulsion Wheel Treads Light Treads Leg Aluminum Leg Wheel Wheel Utility Small Storage Unit Device ECM Suite Storage Small Storage Unit Weapon Light Assault Rifle Energy Gun Small Laser Ballistic Gun Light Assault Rifle Special Weapon Mining Laser Build | -11 -10 -10 -9 ------- Run | Jun Mat Min Mat Slots Evolved 2 | . . . 2 Power . | . . . . Propulsion . | . . . . Utility 2 | . . . 2 Weapon . | . . . . Parts Attached 10 | . 2 . 8 Power 1 | . . . 1 Engine 1 | . . . 1 Core . | . . . . Reactor . | . . . . Propulsion 6 | . 2 . 4 Treads 2 | . . . 2 Leg 1 | . . . 1 Wheel 3 | . 2 . 1 Hover . | . . . . Flight . | . . . . Utility 1 | . . . 1 Device 1 | . . . 1 Storage . | . . . . Processor . | . . . . Hackware . | . . . . Protection . | . . . . Artifact . | . . . . Weapon 2 | . . . 2 Energy Gun . | . . . . Energy Cannon . | . . . . Ballistic Gun 1 | . . . 1 Ballistic Cannon . | . . . . Launcher . | . . . . Special Weapon 1 | . . . 1 Impact Weapon . | . . . . Slashing Weapon . | . . . . Piercing Weapon . | . . . . Special Melee Weapon . | . . . . Unidentified Prototypes . | . . . . Parts Lost 11 | . . . 11 Power 2 | . . . 2 Propulsion 5 | . . . 5 Utility . | . . . . Weapon 4 | . . . 4 Highest Loss Streak 11 | . . . 11 To Critical Strikes . | . . . . Average Slot Usage (%) 70 | . 76 85 63 Engine 11 | . 14 14 8 Treads 1 | . . . 3 Leg 4 | . 8 . . Wheel 14 | . 10 28 16 Device 3 | . . . 6 Storage 12 | . 14 14 11 Energy Gun 10 | . 14 14 7 Ballistic Gun 11 | . 14 14 9 Naked Turns . | . . . . Heaviest Build 12 | 10 10 10 12 Greatest Support 40 | 20 20 20 40 Greatest Overweight (x) . | . . . . Average Overweight (x) . | . . . . Largest Inventory Capacity 8 | . 8 8 8 Average Capacity 8 | . 8 8 8 Most Carried 8 | . 8 8 8 Average Carried 6 | . 6 8 6 Final Capacity 8 | 8 8 8 8 Final Carried 8 | 6 8 8 1 Class Distribution -------------------- 100% | Mutant Dominant Class ---------------- Mutant | -10/Materials Mutant | -10/Mines Mutant | -9/Materials Resources | -11 -10 -10 -9 ----------- Run | Jun Mat Min Mat Matter Collected 247 | 200 31 . 16 Remotely . | . . . . Salvage Created 279 | . 142 . 137 Parts 23 | . 12 . 11 Haulers Intercepted 1 | . . . 1 Recyclers Shooed 1 | . 1 . . Parts Field Recycled . | . . . . Retrieved Matter . | . . . . Parts Self-Destructed . | . . . . Prevented . | . . . . Kills | -11 -10 -10 -9 ------- Run | Jun Mat Min Mat Combat Hostiles Destroyed 5 | . 1 . 4 Guns 5 | . 1 . 4 Classes Destroyed 6 | . 4 . 2 Worker 1 | . 1 . . Hauler 1 | . . . 1 Recycler 1 | . 1 . . Operator 1 | . 1 . . Swarmer 1 | . . . 1 Grunt 4 | . 1 . 3 Best Kill Streak 4 | . 4 . 4 Combat Bots Only 4 | . 1 . 4 Max Kills in Single Turn 1 | . 1 . 1 Gunslinging . | . . . . Exploded . | . . . . Melee . | . . . . Uniques/NPCs Destroyed . | . . . . Combat | -11 -10 -10 -9 -------- Run | Jun Mat Min Mat Damage Taken 1405 | . 33 38 1334 Core 423 | . 11 10 402 Absorbed by Shields . | . . . . Core Remaining (%) 95 | 100 . 91 . Volleys Fired 32 | . 11 1 20 Largest 2 | . 2 2 2 Hottest 60 | . 60 60 60 Shots Fired 55 | . 22 2 31 Gun 55 | . 22 2 31 Cannon . | . . . . Launcher . | . . . . Special . | . . . . Kinetic 32 | . 11 1 20 Thermal 23 | . 11 1 11 Explosive . | . . . . Electromagnetic . | . . . . Robot Hit Streak 8 | . 6 5 8 Robot Miss Streak 4 | . 2 . 4 Penetration Max . | . . . . Secondary Targets . | . . . . Shots Hit Robots 36 | . 14 2 20 Core Hits 17 | . 7 1 9 Critical Kills . | . . . . Critical Parts Destroyed . | . . . . Critical Strikes . | . . . . Melee Attacks . | . . . . Impact . | . . . . Slashing . | . . . . Piercing . | . . . . Sneak Attacks . | . . . . Combat Hostiles . | . . . . Follow-up Attacks . | . . . . Damage Inflicted 340 | . 143 17 180 Guns 340 | . 143 17 180 Cannons . | . . . . Explosions . | . . . . Melee . | . . . . Ramming . | . . . . Kinetic 174 | . 52 6 116 Thermal 166 | . 91 11 64 Explosive . | . . . . Electromagnetic . | . . . . Impact . | . . . . Slashing . | . . . . Piercing . | . . . . Highest Corruption . | . . . . Average Corruption . | . . . . Corruption Purged . | . . . . Corruption Blocked . | . . . . Overload Shots . | . . . . Overflow Damage . | . . . . Projectiles . | . . . . Explosions . | . . . . Melee . | . . . . Knockbacks . | . . . . Impact . | . . . . Kinetic . | . . . . Secondary . | . . . . Self-Inflicted Damage . | . . . . Shots . | . . . . Rammed . | . . . . Targets Rammed . | . . . . Kicked . | . . . . Crushed . | . . . . Highest Temperature 78 | . 78 35 56 Average Temperature 26 | . 33 20 21 Received Heat Transfer 522 | . 18 24 480 Siege Activations . | . . . . Robots Corrupted . | . . . . Combat Hostiles . | . . . . Parts Fried . | . . . . Impact Corruptions . | . . . . Robots Melted . | . . . . Combat Hostiles . | . . . . Parts Melted . | . . . . Heat Transferred 375 | . 200 25 150 Parts Sabotaged . | . . . . Parts Stolen . | . . . . Parts Stripped . | . . . . Power Chain Reactions . | . . . . Missiles Intercepted . | . . . . Alert | -11 -10 -10 -9 ------- Run | Jun Mat Min Mat Peak Influence 45 | . 45 17 43 Initial 17 | . . 17 6 Average 17 | . 20 17 14 Maximum Alert Level . | . . . . Low Security (%) 100 | . 100 100 100 Level 1 . | . . . . Level 2 . | . . . . Level 3 . | . . . . Level 4 . | . . . . Level 5 . | . . . . High Security . | . . . . Max Security . | . . . . Squads Dispatched 1 | . 1 . . Investigation . | . . . . Extermination . | . . . . Reinforcement 1 | . 1 . . Assault . | . . . . Garrison . | . . . . Intercept . | . . . . Searches Triggered . | . . . . Construction Impeded . | . . . . Haulers Reinforced . | . . . . Active Scanning Responses . | . . . . Cargo Convoy Interrupts . | . . . . Stealth | -11 -10 -10 -9 --------- Run | Jun Mat Min Mat Distress Signals 3 | . . . 3 Communications Jammed . | . . . . Distress Signals . | . . . . Times Spotted 27 | . 4 2 21 Peak Tracking Total 13 | . 1 2 13 Tactical Retreats 3 | . . . 3 Traps | -11 -10 -10 -9 ------- Run | Jun Mat Min Mat Traps Triggered . | . . . . Indirectly . | . . . . Trap Hack Attempts . | . . . . Triggered . | . . . . Disarmed . | . . . . Reprogrammed . | . . . . Reused . | . . . . Traps Extracted . | . . . . Installed . | . . . . Triggered . | . . . . Machines | -11 -10 -10 -9 ---------- Run | Jun Mat Min Mat Machines Disabled . | . . . . Max in Single Turn . | . . . . Machines Repaired . | . . . . Machines Sabotaged . | . . . . Overloaded Fab Kills . | . . . . Hacking | -11 -10 -10 -9 --------- Run | Jun Mat Min Mat Machines Accessed . | . . . . Terminals . | . . . . Fabricators . | . . . . Repair Stations . | . . . . Recycling Units . | . . . . Scanalyzers . | . . . . Garrison Access . | . . . . Total Hacks . | . . . . Successful . | . . . . Failed . | . . . . Catastrophic . | . . . . Database Lockouts . | . . . . Manual . | . . . . Terminals . | . . . . Fabricators . | . . . . Repair Stations . | . . . . Recycling Units . | . . . . Scanalyzers . | . . . . Garrison Access . | . . . . Terminal Hacks . | . . . . Fabricator Hacks . | . . . . Repair Station Hacks . | . . . . Recycling Unit Hacks . | . . . . Scanalyzer . | . . . . Garrison Access Hacks . | . . . . Unauthorized Hacks . | . . . . Terminals . | . . . . Fabricators . | . . . . Repair Stations . | . . . . Recycling Units . | . . . . Scanalyzers . | . . . . Garrison Access . | . . . . Data Cores Recovered . | . . . . Used . | . . . . Hacking Detections . | . . . . Full Trace Events . | . . . . Feedback Events . | . . . . Feedback Blocked . | . . . . Robot Schematics Acquired . | . . . . Robots Built . | . . . . Authchips . | . . . . Time . | . . . . Total Robot Build Rating . | . . . . Part Schematics Acquired . | . . . . Parts Built . | . . . . Authchips . | . . . . Time . | . . . . Total Part Build Rating . | . . . . Parts Repaired . | . . . . Time . | . . . . Parts Recycled . | . . . . Recycled Matter . | . . . . Retrieved Matter . | . . . . Retrieved Components . | . . . . Parts Scanalyzed . | . . . . Part Schematics Acquired . | . . . . Parts Damaged . | . . . . Bothacking | -11 -10 -10 -9 ------------ Run | Jun Mat Min Mat Used RIF Installer . | . . . . Robots Hacked . | . . . . Non-combat . | . . . . Combat . | . . . . Robot Hacks Applied . | . . . . Relay Couplers Released . | . . . . Fabnet Peak Effective % . | . . . . Robots Rewired . | . . . . Allies Hacked . | . . . . Hacks Repelled . | . . . . Allies | -11 -10 -10 -9 -------- Run | Jun Mat Min Mat Total Allies . | . . . . Largest Group . | . . . . Highest-Rated Group . | . . . . Highest-Rated Ally . | . . . . Total Orders . | . . . . Ally Attacks . | . . . . Total Damage . | . . . . Kills . | . . . . Allies Corrupted . | . . . . Allies Melted . | . . . . Intel | -11 -10 -10 -9 ------- Run | Jun Mat Min Mat Robot Analysis Total . | . . . . Derelict Logs Recovered . | . . . . Drone Launches . | . . . . Drone Recoveries . | . . . . Exploration | -11 -10 -10 -9 ------------- Run | Jun Mat Min Mat Turns Passed 281 | . 138 8 135 Spaces Moved 204 | 1 105 7 91 Core . | . . . . Treads 6 | . . . 6 Legs 44 | 1 43 . . Wheels 154 | . 62 7 85 Hover . | . . . . Flight . | . . . . Fastest Speed 80 | 120 80 80 80 Average Speed 92 | 120 96 80 87 Slowest Speed 160 | 120 120 80 160 Overloaded Moves . | . . . . Propulsion Burnouts . | . . . . Robots Hopped . | . . . . Cave-ins Triggered . | . . . . Exploration Rate (%) 13 | 2 27 6 19 Regions Visited 3 Branch Regions 1 Pre-discovered Areas . | . . . . Known Exits Taken . | . . . . Unknown Exits Taken 3 | 1 1 1 . Scrap Searched . | . . . . Spaces Dug . | . . . . Terrain Destroyed . | . . . . Melee . | . . . . Projectile . | . . . . AOE . | . . . . Terrain Rammed . | . . . . Walls Destroyed . | . . . . Machines Disabled . | . . . . Actions | -11 -10 -10 -9 --------- Run | Jun Mat Min Mat Total 248 | . 122 7 119 Wait . | . . . . Move 201 | . 104 6 91 Hop . | . . . . Pick Up 3 | . 3 . . Fast Attach 1 | . . . 1 Attach 8 | . 1 . 7 Detach 1 | . 1 . . Swap 1 | . 1 . . Drop 1 | . 1 . . Fire 32 | . 11 1 20 Melee . | . . . . Ram . | . . . . Kick . | . . . . Crush . | . . . . Escape Stasis . | . . . . Rewire . | . . . . Trap . | . . . . Miscellaneous . | . . . . Route ------- -11/Junkyard -10/Materials -10/Mines -9/Materials History --------- Turn | Location | Event 1 | -11/Junkyard | Discovered new exit (range 0) 1 | -11/Junkyard | Entered Materials 119 | -10/Materials | Discovered new exit (range 16) 139 | -10/Materials | Entered Mines 141 | -10/Mines | Discovered new exit (range 4) 147 | -10/Mines | Entered Materials 147 | -9/Materials | Evolved 2 slots: Utility x2 250 | -9/Materials | Core integrity fell below 50% 272 | -9/Materials | Core integrity fell below 20% 282 | -9/Materials | Destroyed by S-10 Pest with Light Assault Rifle Last Messages --------------- 00257_ U-05 Engineer lays Concrete. 00258_ Lgt. Ion Engine destroyed. 00258_ U-05 Engineer builds a Wall. 00261_ K-01 Serf collects debris. 00261_ Critical hit (Burn: +37). 00261_ Lgt. Treads destroyed. 00264_ K-01 Serf collects debris. 00265_ U-05 Engineer builds a Wall. 00267_ Critical hit (Burn: +37). 00267_ Lgt. Assault Rifle destroyed. 00268_ K-01 Serf collects debris. 00269_ U-05 Engineer lays Concrete. 00270_ Mining Laser destroyed. 00270_ U-05 Engineer lays Concrete. 00272_ Y-45 Defender destroyed. 00272_ U-05 Engineer lays Concrete. 00272_ K-01 Serf collects debris. 00273_ U-05 Engineer lays Concrete. 00277_ K-01 Serf collects debris. 00282_ Com. Wheel destroyed. Map ----- +----------------------------------------------------+ | # ### ## ???? #??????????????????????????? | | ????# #?? ???? #??????????????????????????? | | ????# #??????? #??????????????????????????? | | ????# #?????????????????????????????????????? | | ????# #?????????????????????????????????????? | | ????# #?????????????????????????????????????? | | ????# #?????????????????????????????????????? | | ????# #?????????????????????????????????????? | | ????# ! #?????????????????????????????????????? | | ????#!!= #?????????????????????????????????????? | | ????#%# #????????????????????????????????????? | | ????#!# ????????????????????????????????? | | ????#=# ?????????? #?????????????????? | | ????# # ?????????? ??????????????????? | | ????# # #######?????????? ??????????????????? | | ??###"""#/###???????????????? #??????????????????? | | ??#" # #??????????????? #??????????????????? | | ?##" = " #??????????????? #??????????????????? | | #"" % " #??????????????? #??????????????????? | | " " ##????????????? #??????????????????? | | "%" " #????????????? #??????????????????? | | "" % " #????????????# ##?????????????????? | | ##"!"##+#"";############## ####### ?????????? | | *%! %!k=%s s r ????????? | | != * g g ????????? | | Y ta @ k ????????? | | ############### ########/ ###???????????????? | | ??????????????# #???????##+###?????????????????? | | ??????????????# #??????????????????????????????? | | ??????????????# #??????????????????????????????? | | ??????????????# #??????????????????????????????? | | ??????????????# #??????????????????????????????? | | ??????????????# #??????????????????????????????? | | ??????????????# #??????????????????????????????? | | ??????????????# #??????????????????????????????? | | ??????????????# #??????????????????????????????? | | ??????????????# #??????????????????????????????? | | ??????????????# #??????????????????????????????? | | ?????????????? ??????????????????????????????? | | ?????????????? ???????????????????????????????? | | ??????????????? ???????????????????????????????? | | ?????????????????????????????????????????????????? | | ?????????????????????????????????????????????????? | | ?????????????????????????????????????????????????? | | ?????????????????????????????????????????????????? | | ?????????????????????????????????????????????????? | | ?????????????????????????????????????????????????? | | ?????????????????????????????????????????????????? | | ?????????????????????????????????????????????????? | | ?????????????????????????????????????????????????? | +----------------------------------------------------+ Best States ------------- Heat Dissipation 28 Energy Generation 10 Energy Capacity 125 Matter Stores 300 Matter Capacity 300 Sight Range 16 Terrain Scan Density 10 ECM Strength 1 Evasion (%) 55 Recoil Reduction 2 Item Schematics ----------------- None Robot Schematics ------------------ None Fabricated ------------ Nothing Alien Tech Used ----------------- None Achievements -------------- None Challenges ------------ None Game ------ Seed ColdSurveybotExtractor Manual? 0 Play Time 00:04:40 Cumulative 92.0 hours Start 2023.11.30 @ 15:06:45 End 2023.11.30 @ 15:09:50 Sessions 1 Manual Loads 0 Difficulty Rogue Special Mode None Game No. 139 Rogue 139 Adventurer 0 Explorer 0 Win Type - Total 0 Types 0/0/0/0/0/0/0/0/0 Lore% 30 Gallery% 54 Achievement% 36 Wizard Run 0 Options --------- ASCII 0 Keyboard 0 Movement Mouse Keybinds 0 Fullscreen 2 Font 18/SmallcapsGlow Map View 76x50 Tactical HUD 1 Map Filters NONE Filters NONE Steam 1 RUN: 4029f0e3-120b-4de8-ad80-37e4e5c752b6